bitfinex/quotes_ETHUSD_20240614
["timestamp","ask_amount","ask_price","bid_price","bid_amount"]
[1718354477471,0.62147511,3525.2,3524.7,2.2652]
[1718354477626,1.43344514,3525.1,3523.8,2.276]
[1718354477967,3.21475105,3525.1,3523.8,2.276]
[1718354479269,1.78130591,3525.0,3523.8,2.276]
[1718354479563,1.78130591,3525.0,3524.0,2.3097]
[1718354481257,1.78130591,3524.9,3524.0,2.3097]
[1718354482233,3.21475105,3524.9,3524.0,2.3097]
[1718354482427,1.78130591,3524.6,3524.0,2.3097]
[1718354483171,1.78130591,3524.4,3524.0,2.3097]
[1718354484753,1.78130591,3524.4,3523.8,2.3838]
[1718354485086,1.78130591,3524.3,3523.8,2.3838]
[1718354485938,1.43344514,3524.7,3523.8,2.3838]
[1718354486144,1.78434887,3524.3,3523.8,2.3838]
[1718354487481,1.78434887,3524.4,3523.8,2.3838]
[1718354489254,1.78434887,3524.5,3523.8,2.3838]
[1718354489470,1.78434887,3524.4,3523.8,2.3838]
[1718354489668,3.21779401,3524.5,3523.8,2.3838]
[1718354489856,1.78434887,3524.4,3523.8,2.3838]
[1718354490059,3.21779401,3524.5,3523.8,2.3838]
[1718354490406,0.37181175,3524.4,3523.8,2.3838]
[1718354490688,2.15616062,3524.4,3523.8,2.3838]
[1718354490891,0.37181175,3524.4,3523.8,2.3838]
[1718354491051,3.21779401,3524.5,3523.8,2.3838]
[1718354491388,1.43344514,3524.5,3523.8,2.3838]
[1718354491580,3.21659689,3524.5,3523.8,2.3838]
[1718354492178,3.21659722,3524.5,3523.8,2.3838]
[1718354493597,1.78283457,3524.6,3523.8,2.3838]
[1718354493757,1.78283457,3524.6,3523.9,0.05675212]
[1718354493957,1.78283457,3524.6,3524.0,2.2552]
[1718354494494,1.78283457,3524.7,3524.0,2.2552]
[1718354495292,3.490746,3524.9,3524.0,2.2552]
[1718354495293,1.78283457,3524.6,3524.0,2.2552]
[1718354497214,3.490746,3524.9,3524.0,2.2552]
[1718354497215,1.78283457,3524.7,3524.0,2.2552]
[1718354497355,3.490746,3524.9,3524.0,2.2552]
[1718354497560,1.78239704,3524.7,3524.0,2.2552]
[1718354500163,1.78239704,3524.8,3524.0,2.2552]
[1718354500366,1.78239704,3524.7,3524.0,2.2552]
[1718354501097,1.78239704,3524.6,3524.0,2.2552]
[1718354501305,2.23139997,3524.6,3524.0,2.2552]
[1718354502174,1.43344514,3524.5,3523.0,2.2833]
[1718354502436,3.21584218,3524.5,3523.0,2.2833]
[1718354502562,1.43344514,3524.5,3523.0,2.2833]
[1718354502764,1.78239704,3524.6,3523.2,2.3492]
[1718354503068,1.78239704,3524.8,3523.4,2.3492]
[1718354503269,1.78239704,3524.8,3523.6,2.3252]
[1718354503467,1.78239704,3524.8,3523.8,2.3252]
[1718354503691,1.78239704,3524.8,3523.9,2.3252]
[1718354503969,1.78239704,3524.7,3523.9,2.55772]
[1718354504665,3.49070665,3525.0,3523.9,2.55772]
[1718354504666,1.78239704,3524.8,3523.9,2.55772]
[1718354505066,4.78239704,3524.8,3523.9,2.55772]
[1718354505494,3.0,3524.8,3523.9,2.55772]
[1718354505705,1.78263663,3524.8,3523.9,2.55772]
[1718354505861,4.78263663,3524.8,3523.9,2.55772]
[1718354507706,1.78263663,3524.7,3523.9,2.55772]
[1718354507901,1.78263663,3524.7,3523.9,2.3252]
[1718354508683,1.78263663,3524.6,3523.9,2.3252]
[1718354509205,1.78263663,3524.7,3523.9,2.3252]
[1718354509430,1.92415211,3524.9,3523.9,2.3252]
[1718354509431,1.78263663,3524.6,3523.9,2.3252]
[1718354509707,1.78263663,3524.7,3523.9,2.3252]
[1718354510195,1.78263663,3524.6,3523.9,2.3252]
[1718354510364,1.78263663,3524.7,3523.9,2.3252]
[1718354510976,1.78263663,3524.6,3523.9,2.3252]
[1718354511228,1.78263663,3524.7,3523.9,2.3252]
[1718354512805,1.78263663,3524.6,3523.9,2.3252]
[1718354513222,1.78263663,3524.7,3523.9,2.3252]
[1718354513711,1.78263663,3524.6,3523.9,2.3252]
[1718354514073,3.0,3524.8,3523.9,2.3252]
[1718354514279,1.7837554,3524.6,3523.9,2.3252]
[1718354516191,1.7837554,3524.6,3523.9,2.55772]
[1718354516518,1.7837554,3524.7,3523.9,2.55772]
[1718354517116,1.78427965,3524.7,3523.9,2.55772]
[1718354518516,1.78427965,3524.6,3523.9,2.55772]
[1718354520916,1.78536049,3524.6,3523.9,2.55772]
[1718354521339,1.78536049,3524.5,3523.9,2.55772]
[1718354522837,1.78536049,3524.4,3523.9,2.55772]
[1718354526142,1.78536049,3524.4,3524.1,2.4234]
[1718354526847,1.78536049,3524.5,3524.1,2.4234]
[1718354527225,1.78536049,3524.4,3524.1,2.4234]
[1718354528357,1.78536049,3524.4,3524.2,0.05674896]
[1718354528511,1.78536049,3524.4,3524.3,2.3018]
[1718354528708,1.78536049,3524.4,3524.3,2.5376549]
[1718354528952,1.78536049,3525.1,3524.3,2.5376549]
[1718354529262,1.78536049,3525.2,3524.5,2.3029]
[1718354529413,1.78536049,3525.3,3524.6,0.05673854]
[1718354529615,1.78536049,3525.3,3524.6,2.3029]
[1718354529813,0.49068368,3525.5,3524.8,2.3029]
[1718354529814,1.78536049,3525.5,3524.8,2.3029]
[1718354530112,0.49068368,3526.0,3525.0,2.3029]
[1718354530113,1.78536049,3525.6,3525.0,2.3029]
[1718354530353,1.78536049,3525.7,3525.0,2.3029]
[1718354531113,0.49068368,3526.1,3525.0,2.3029]
[1718354531114,1.78536049,3525.8,3525.0,2.3029]
[1718354533141,1.78536049,3525.9,3525.0,2.3029]
[1718354533540,4.78536049,3525.9,3525.0,2.3029]
[1718354534150,1.78536049,3525.8,3525.0,2.3029]
[1718354534312,3.0,3525.8,3525.0,2.3029]
[1718354534747,4.78536049,3525.9,3525.0,2.3029]
[1718354534963,1.78536049,3525.8,3525.0,2.3029]
[1718354535155,7.16436049,3525.8,3525.0,2.3029]
[1718354535351,7.65489269,3525.8,3525.0,2.3029]
[1718354535551,4.78536049,3525.8,3525.0,2.3029]
[1718354536855,3.75144514,3525.7,3525.0,2.3029]
[1718354537162,1.50210853,3525.6,3525.0,2.3029]
[1718354537355,1.43344514,3525.5,3525.0,2.3029]
[1718354547341,5.50470563,3525.5,3524.1,2.4531]
[1718354547565,1.78536049,3525.3,3524.1,2.4531]
[1718354547767,1.43344514,3525.3,3524.1,2.4531]
[1718354547975,3.21880563,3525.3,3524.1,2.4531]
[1718354548978,1.43344514,3525.3,3524.1,2.4531]
[1718354550365,3.21880563,3525.3,3524.1,2.4531]
[1718354551459,1.43344514,3525.3,3524.1,2.4531]
[1718354551659,3.96854396,3525.3,3524.1,2.69841]
[1718354551847,0.696,3524.7,3524.1,2.69841]
[1718354552249,0.696,3524.5,3524.1,2.69841]
[1718354552434,3.96854396,3525.3,3524.1,2.69841]
[1718354552435,0.696,3524.3,3524.1,2.69841]
[1718354553063,0.696,3524.5,3524.1,2.69841]
[1718354553265,0.696,3524.5,3524.1,2.4531]
[1718354555874,1.78205991,3525.0,3524.1,2.4531]
[1718354556080,0.696,3524.5,3524.1,2.4531]
[1718354561475,0.696,3524.2,3524.1,2.4531]
[1718354561679,0.696,3524.2,3522.7,2.987]
[1718354561680,0.696,3524.2,3523.2,2.294]
[1718354561855,2.2872,3524.5,3523.2,2.294]
[1718354561856,0.696,3523.6,3523.2,2.294]
[1718354562184,0.696,3523.8,3523.2,2.294]
[1718354562385,1.78234409,3524.3,3523.2,2.294]
[1718354562691,0.696,3523.8,3523.2,2.294]
[1718354562866,0.696,3523.8,3523.2,2.5234]
[1718354571101,0.696,3523.8,3523.2,2.294]
[1718354572776,0.696,3523.6,3523.2,2.294]
[1718354575593,0.696,3523.4,3523.2,2.294]
[1718354578458,0.696,3523.4,3522.3,2.4713]
[1718354579595,0.696,3523.4,3522.3,3.1673]
[1718354579763,0.696,3523.2,3522.4,2.70733]
[1718354580191,2.2519,3523.7,3522.4,2.70733]
[1718354580500,0.696,3523.3,3522.4,2.70733]
[1718354581163,2.2519,3523.7,3522.4,2.70733]
[1718354581365,0.696,3523.3,3522.4,2.70733]
[1718354581591,0.696,3523.3,3522.6,2.4298]
[1718354582900,0.696,3523.1,3522.6,2.4298]
[1718354585100,0.696,3523.3,3522.6,2.4298]
[1718354585336,0.696,3523.2,3522.6,2.4298]
[1718354585597,0.696,3523.4,3522.8,2.3571]
[1718354585799,2.257,3523.9,3522.9,0.05676807]
[1718354585964,2.257,3523.9,3523.0,2.3571]
[1718354585965,0.696,3523.5,3523.0,2.3571]
[1718354589579,1.43344514,3523.9,3523.0,2.3571]
[1718354589820,0.696,3523.5,3523.0,2.3571]
[1718354592897,2.4866,3523.8,3523.0,2.3571]
[1718354593108,0.696,3523.1,3523.0,2.3571]
[1718354593291,0.696,3523.1,3522.6,2.3925]
[1718354600582,2.27186528,3523.6,3522.6,2.3925]
[1718354600784,3.49081677,3523.7,3522.6,2.3925]
[1718354601017,5.00271751,3523.7,3522.6,2.3925]
[1718354601316,0.696,3523.4,3522.6,2.3925]
[1718354602404,0.696,3523.4,3522.8,2.3639]
[1718354607721,0.696,3523.2,3522.8,2.3639]
[1718354608294,1.78467609,3523.5,3522.8,2.3639]
[1718354608622,0.696,3523.3,3522.8,2.3639]
[1718354609213,0.696,3523.1,3522.8,2.3639]
[1718354609411,0.696,3523.1,3522.4,2.2839]
[1718354609608,0.696,3522.9,3522.4,2.2839]
[1718354609998,2.493,3523.3,3522.4,2.2839]
[1718354610195,0.696,3522.9,3522.4,2.2839]
[1718354615236,0.696,3522.7,3522.4,2.2839]
[1718354615677,0.696,3522.5,3521.9,2.3917]
[1718354615806,0.696,3522.3,3521.9,2.3917]
[1718354616942,1.78467609,3522.7,3521.9,2.3917]
[1718354616943,1.78582541,3522.7,3521.9,2.3917]
[1718354617153,0.696,3522.3,3521.9,2.3917]
[1718354623741,0.696,3522.5,3521.9,2.3917]
[1718354625839,0.696,3522.3,3521.9,2.3917]
[1718354626719,0.696,3522.1,3521.8,0.44419199]
[1718354626921,1.78460502,3522.7,3520.9,7.44]
[1718354626922,0.696,3521.9,3520.9,7.44]
[1718354627124,2.312,3522.0,3520.7,4.1204]
[1718354627125,0.696,3521.4,3520.7,2.4164]
[1718354627310,0.696,3521.4,3520.8,0.24164]
[1718354628522,4.19630502,3522.2,3520.9,2.3498]
[1718354628722,0.696,3521.7,3520.9,2.40659499]
[1718354629444,0.696,3521.7,3520.9,2.3498]
[1718354631137,2.4117,3522.2,3521.0,0.0567948]
[1718354631447,0.696,3521.8,3521.0,0.0567948]
[1718354634826,0.696,3521.8,3521.1,2.4532]
[1718354635056,0.696,3521.8,3521.2,0.05679154]
[1718354635245,0.696,3521.8,3521.3,0.05678932]
[1718354637551,5.88655455,3522.5,3521.4,2.3781]
[1718354637746,0.696,3521.9,3521.4,2.3781]
[1718354639763,1.78103706,3522.7,3521.5,0.0567901]
[1718354640106,0.696,3522.3,3521.6,2.3]
[1718354640225,0.696,3522.3,3521.7,0.05678444]
[1718354640426,0.696,3522.3,3521.7,0.29246288]
[1718354640924,0.696,3522.3,3521.7,0.05678444]
[1718354642332,0.696,3522.1,3521.7,0.05678444]
[1718354642663,3.0,3522.7,3521.7,0.05678444]
[1718354642958,0.696,3522.2,3521.7,0.05678444]
[1718354644252,0.49099583,3523.0,3521.8,2.3255]
[1718354644437,0.696,3522.5,3521.9,0.05677854]
[1718354645997,0.696,3522.5,3521.8,2.63332844]
[1718354646867,3.56998005,3523.0,3521.8,2.63332844]
[1718354647072,3.56998005,3523.0,3521.9,0.05677862]
[1718354647308,3.56998005,3523.0,3522.0,2.3613]
[1718354647601,0.696,3522.6,3522.1,0.05677685]
[1718354652205,3.56998005,3523.0,3522.1,0.05677685]
[1718354652411,0.696,3522.6,3522.1,0.05677685]
[1718354652566,0.696,3522.6,3522.1,0.35626845]
[1718354653170,3.0,3523.0,3522.1,0.35626845]
[1718354653171,3.49095022,3523.0,3522.1,0.35626845]
[1718354653372,3.49095022,3523.0,3522.2,2.4599]
[1718354653373,3.0,3523.0,3522.2,2.4599]
[1718354653571,3.0,3523.1,3522.2,2.4599]
[1718354653808,1.78228524,3523.2,3522.2,2.4599]
[1718354653989,0.696,3522.7,3522.2,2.4599]
[1718354655114,0.4909272,3523.3,3522.4,2.39]
[1718354655115,0.696,3522.9,3522.4,2.39]
[1718354657412,5.27321244,3523.3,3522.4,2.39]
[1718354657615,0.696,3522.8,3522.4,2.39]
[1718354659222,5.27440815,3523.3,3522.4,2.65894916]
[1718354659507,0.696,3522.8,3522.4,2.39]
[1718354659701,0.696,3522.9,3522.5,0.056774]
[1718354660823,4.12860793,3523.4,3522.5,0.056774]
[1718354660977,1.78350793,3523.4,3522.5,0.056774]
[1718354661178,1.78350793,3523.4,3522.6,2.6489774]
[1718354661484,1.78350793,3523.4,3522.8,2.4043]
[1718354661485,0.696,3523.4,3522.8,2.4043]
[1718354661809,0.696,3523.4,3522.9,0.05676359]
[1718354662124,3.0,3523.8,3522.8,2.4043]
[1718354662419,0.696,3523.4,3522.8,2.4043]
[1718354662708,0.696,3523.4,3522.9,0.26489774]
[1718354664180,0.696,3523.2,3522.9,0.26489774]
[1718354664412,0.696,3523.2,3522.8,2.4043]
[1718354669119,0.696,3523.2,3522.5,2.4666]
[1718354669322,0.696,3523.0,3522.5,2.4666]
[1718354686863,0.696,3522.8,3522.5,2.4666]
[1718354688142,0.696,3522.8,3521.9,2.4757]
[1718354692574,0.696,3522.6,3521.9,2.4757]
[1718354699365,0.696,3522.7,3521.9,2.4757]
[1718354700382,0.696,3522.3,3521.9,2.4757]
[1718354700582,1.78636526,3522.7,3521.9,2.4757]
[1718354700791,0.696,3522.1,3521.9,2.4757]
[1718354702965,0.696,3522.1,3521.2,2.2902]
[1718354703193,0.696,3521.7,3521.2,2.2902]
[1718354704475,0.696,3521.5,3521.1,2.3226]
[1718354704687,4.16986526,3522.1,3520.2,2.3226]
[1718354704688,0.696,3521.3,3520.2,2.3226]
[1718354704859,0.696,3521.3,3520.4,2.3226]
[1718354705044,0.696,3521.3,3520.4,3.75604514]
[1718354705244,0.696,3521.3,3520.4,5.46004514]
[1718354705692,2.20335179,3522.0,3520.4,5.46004514]
[1718354705893,0.696,3521.4,3520.5,0.64327291]
[1718354708407,2.3835,3522.1,3520.7,2.3052]
[1718354708689,2.3835,3522.1,3520.6,3.83344514]
[1718354708690,0.696,3521.8,3520.9,2.3052]
[1718354708848,0.696,3521.8,3521.0,0.05679261]
[1718354709053,0.696,3521.8,3521.1,2.4672]
[1718354709254,0.696,3521.8,3521.2,0.05679251]
[1718354710002,3.49106432,3522.3,3521.2,0.05679251]
[1718354710153,0.696,3521.9,3521.3,2.3923]
[1718354710490,0.696,3521.9,3521.4,0.05678928]
[1718354710691,0.696,3521.9,3521.3,2.3923]
[1718354711008,0.696,3521.9,3521.4,0.05678915]
[1718354712665,0.49103148,3522.6,3521.5,2.3208]
[1718354712849,0.49103148,3522.6,3521.6,0.05678445]
[1718354712850,0.696,3522.4,3521.6,0.05678445]
[1718354713560,2.4362,3522.7,3521.6,0.05678445]
[1718354714046,0.696,3522.3,3521.6,0.05678445]
[1718354714248,2.4362,3522.7,3521.6,0.3641429]
[1718354714450,0.696,3522.2,3521.6,0.05678445]
[1718354715650,0.696,3522.2,3521.5,2.3208]
[1718354715962,2.4362,3522.7,3521.5,2.3208]
[1718354715963,0.696,3521.8,3521.5,2.3208]
[1718354716186,0.696,3521.8,3520.9,2.3512]
[1718354716487,0.696,3521.8,3521.0,2.4304]
[1718354720011,0.696,3521.4,3520.7,2.4903]
[1718354725975,2.4681,3521.7,3520.7,2.4903]
[1718354726180,0.696,3521.5,3520.7,2.4903]
[1718354726371,0.696,3521.5,3520.8,0.31863]
[1718354729373,0.696,3521.5,3520.7,2.4903]
[1718354731305,2.4681,3521.7,3520.8,0.05679622]
[1718354731479,2.47454921,3522.3,3520.9,2.2634]
[1718354731480,2.3645,3522.0,3520.9,2.2634]
[1718354731687,0.696,3521.9,3521.1,2.2634]
[1718354731891,3.0,3522.2,3521.2,0.23201937]
[1718354732086,0.696,3521.8,3521.2,0.23201937]
[1718354732278,3.0,3522.2,3521.2,0.23201937]
[1718354732625,3.0,3522.2,3521.1,2.2634]
[1718354732626,0.49110407,3522.2,3521.1,2.2634]
[1718354732910,2.3645,3522.4,3521.2,2.49168689]
[1718354732911,0.49110407,3522.4,3521.2,2.49168689]
[1718354733095,0.696,3522.3,3521.4,2.4777]
[1718354733298,4.21259967,3522.7,3521.4,2.4777]
[1718354733299,0.696,3522.1,3521.4,2.4777]
[1718354733812,0.696,3521.9,3521.4,2.4777]
[1718354733999,0.696,3521.9,3521.4,3.03921451]
[1718354734207,0.696,3521.7,3520.9,2.3834]
[1718354735409,0.696,3521.9,3520.9,2.3834]
[1718354735620,0.696,3521.9,3520.9,0.363449]
[1718354736834,0.696,3521.8,3520.9,0.363449]
[1718354736997,0.696,3521.8,3521.0,0.2763449]
[1718354737185,2.4854,3522.1,3521.0,0.2763449]
[1718354737387,2.4854,3522.1,3521.1,0.05679]
[1718354737692,2.27360374,3522.5,3521.1,0.05679]
[1718354737693,0.696,3521.9,3521.1,0.05679]
[1718354739481,0.696,3521.9,3521.1,1.76079]
[1718354739680,0.696,3522.0,3521.2,0.30965839]
[1718354739876,0.696,3522.0,3521.3,2.4536]
[1718354744136,1.78249967,3522.3,3521.3,2.4536]
[1718354744426,0.696,3521.9,3521.3,2.4536]
[1718354747141,0.696,3521.7,3520.8,1.704]
[1718354747453,0.696,3521.7,3520.9,0.47369]
[1718354757364,2.4347,3521.6,3520.7,2.3369]
[1718354757952,0.696,3521.5,3520.7,2.3369]
[1718354758760,0.696,3521.0,3520.5,1.704]
[1718354759240,0.696,3521.2,3520.5,1.91883562]
[1718354759965,0.696,3521.2,3520.5,4.18073562]
[1718354762736,2.4669,3521.4,3520.5,4.18073562]
[1718354762940,0.696,3521.2,3520.5,4.18073562]
[1718354763526,3.1629,3521.4,3520.5,4.18073562]
[1718354763721,3.1629,3521.4,3520.6,0.53210918]
[1718354763933,1.78717988,3521.6,3520.7,1.4902429]
[1718354764138,1.78717988,3521.9,3521.0,3.1103]
[1718354764334,1.78717988,3521.9,3521.1,0.05678891]
[1718354764663,0.696,3521.9,3521.1,0.05678891]
[1718354765165,0.696,3521.9,3521.0,2.4143]
[1718354765468,0.696,3521.9,3521.1,0.05678894]
[1718354766065,2.4369,3522.0,3521.1,0.05678894]
[1718354766450,4.13397988,3522.3,3521.1,1.49023408]
[1718354766653,0.696,3522.1,3521.2,0.6615718]
[1718354767045,0.696,3521.9,3521.2,0.6615718]
[1718354769741,0.696,3521.7,3521.2,0.6615718]
[1718354769948,0.696,3521.7,3521.0,4.1183]
[1718354774485,2.4744,3521.8,3521.0,4.1183]
[1718354775561,2.4744,3521.8,3521.1,0.05678907]
[1718354775782,2.4744,3521.8,3521.0,4.1183]
[1718354775934,2.4744,3521.8,3521.1,0.48143]
[1718354776874,2.4744,3521.8,3521.2,0.05678909]
[1718354777174,2.4744,3521.8,3521.3,0.05678909]
[1718354777369,1.78717988,3522.2,3521.3,0.05678909]
[1718354777572,1.78717988,3522.2,3521.4,2.2515]
[1718354777889,0.49106346,3522.7,3521.7,0.696]
[1718354777890,4.75107988,3522.7,3521.7,0.696]
[1718354778084,4.75107988,3522.7,3521.6,3.9555]
[1718354778238,0.696,3522.5,3521.6,5.38894514]
[1718354778662,1.78717988,3522.9,3521.7,0.75277772]
[1718354778975,0.696,3522.8,3521.8,0.53820765]
[1718354779672,0.696,3522.7,3521.8,3.67565279]
[1718354781151,2.2679,3523.0,3521.9,0.696]
[1718354781444,5.08298993,3523.5,3521.8,3.67565279]
[1718354781445,1.78541994,3523.7,3522.7,4.8915]
[1718354781663,3.02230858,3523.8,3522.7,6.32494514]
[1718354781865,0.696,3523.6,3522.7,6.32494514]
[1718354783880,0.696,3523.6,3522.7,5.62894514]
[1718354785659,3.0,3524.0,3522.7,2.4915]
[1718354785660,0.696,3523.4,3522.7,2.4915]
[1718354787898,0.696,3523.2,3522.4,4.0936]
[1718354788188,0.696,3523.2,3522.5,1.43344514]
[1718354788904,0.696,3523.2,3522.5,3.13844514]
[1718354789073,0.696,3523.4,3522.5,3.13844514]
[1718354789898,4.24301219,3524.4,3522.9,1.705]
[1718354790085,4.24301219,3524.4,3522.8,3.1489]
[1718354790086,0.696,3523.8,3523.0,3.13844514]
[1718354790888,3.0,3524.3,3523.0,3.13844514]
[1718354791089,2.462,3524.4,3523.0,3.13844514]
[1718354791090,2.462,3524.4,3523.2,1.705]
[1718354791287,0.42430122,3524.3,3523.5,1.705]
[1718354791473,2.45445742,3525.5,3523.7,1.705]
[1718354791474,4.15641219,3525.1,3523.7,1.705]
[1718354791695,4.15641219,3525.1,3523.7,3.13844514]
[1718354791696,0.696,3524.4,3523.7,3.13844514]
[1718354792217,2.3754,3525.1,3523.8,1.43344514]
[1718354792520,1.78101219,3525.4,3523.8,1.43344514]
[1718354792521,3.0,3525.4,3523.9,4.0398]
[1718354792723,4.13481219,3525.6,3524.1,1.705]
[1718354792724,2.3538,3525.6,3524.1,1.705]
[1718354793014,2.3538,3525.6,3524.2,3.13844514]
[1718354793015,0.46254992,3525.5,3524.2,3.13844514]
[1718354793884,0.46254992,3525.5,3523.9,2.3348]
[1718354793885,3.0,3525.4,3524.0,1.705]
[1718354794083,3.0,3525.3,3524.0,1.705]
[1718354795571,1.67,3525.2,3523.9,2.3348]
[1718354798500,1.67,3525.2,3523.9,3.76824514]
[1718354798704,0.767,3525.1,3523.9,3.76824514]
[1718354799815,0.767,3525.1,3524.0,3.13844514]
[1718354804335,0.767,3525.1,3524.0,1.705]
[1718354809502,0.767,3525.1,3524.2,2.4096]
[1718354809709,0.767,3525.1,3524.3,0.05673891]
[1718354811717,0.9531905,3525.5,3524.3,1.49018405]
[1718354811931,0.9531905,3525.5,3524.3,3.19518405]
[1718354811932,0.46254992,3525.5,3524.3,3.19518405]
[1718354812645,0.46254992,3525.5,3524.4,2.2848]
[1718354812842,3.0,3525.7,3524.5,0.05673443]
[1718354813045,0.696,3525.1,3524.5,0.05673443]
[1718354813926,0.696,3525.1,3524.4,2.2848]
[1718354814660,0.696,3525.1,3524.5,0.05673494]
[1718354815363,0.696,3525.1,3524.4,2.2848]
[1718354815519,0.696,3525.1,3524.5,0.59905947]
[1718354816745,0.696,3525.1,3524.5,2.03250461]
[1718354817120,3.29626736,3525.8,3524.6,5.48304514]
[1718354817333,0.696,3525.5,3524.6,5.48304514]
[1718354817664,0.696,3525.3,3524.6,5.48304514]
[1718354817823,3.29626736,3525.8,3524.7,0.51580423]
[1718354818022,0.696,3525.3,3524.7,1.94924937]
[1718354820767,0.49058889,3525.9,3524.8,2.3817]
[1718354820970,2.341,3526.0,3524.8,2.43843005]
[1718354821122,2.341,3526.0,3524.9,0.50836794]
[1718354821326,0.696,3525.5,3524.9,0.50836794]
[1718354821547,2.341,3526.0,3525.0,0.05672899]
[1718354821786,3.0,3526.3,3525.1,5.55604514]
[1718354821787,0.49058889,3526.3,3525.1,5.55604514]
[1718354821969,0.17500902,3526.4,3525.2,2.47432185]
[1718354822166,0.49058889,3526.7,3525.4,2.4176]
[1718354822362,0.696,3526.4,3525.5,3.19516083]
[1718354822562,2.95178889,3526.9,3525.7,4.183]
[1718354822563,0.29617927,3526.8,3525.7,4.183]
[1718354822776,0.29617927,3526.8,3525.8,1.49015655]
[1718354822985,4.087703,3527.0,3525.8,3.19515655]
[1718354823292,0.75782919,3526.9,3525.8,3.19515655]
[1718354823695,0.696,3526.7,3525.8,3.19515655]
[1718354824213,0.75782919,3526.9,3525.8,3.19515655]
[1718354824519,0.696,3526.7,3525.8,3.19515655]
[1718354824813,0.696,3526.6,3525.8,3.19515655]
[1718354825106,0.75782919,3526.9,3525.9,0.42725204]
[1718354825392,0.75782919,3526.9,3525.8,3.13844514]
[1718354827954,2.42682919,3526.9,3525.7,2.478]
[1718354829375,2.4125,3526.8,3525.4,1.705]
[1718354829601,2.4125,3526.8,3525.5,3.13844514]
[1718354829799,2.4125,3526.7,3525.5,1.43344514]
[1718354830095,3.3542474,3526.7,3525.5,1.43344514]
[1718354830521,0.9417474,3526.7,3525.6,2.4527]
[1718354830684,0.9417474,3526.7,3525.7,0.05671679]
[1718354830881,0.9417474,3526.7,3525.6,2.4527]
[1718354831084,0.9417474,3526.7,3525.8,0.05671679]
[1718354832589,2.91731889,3526.9,3525.8,1.49016193]
[1718354832898,2.42682919,3526.9,3525.8,1.43344514]
[1718354833077,0.75782919,3526.9,3525.9,0.05671184]
[1718354833479,4.087703,3527.0,3525.9,0.05671184]
[1718354834598,4.087703,3527.0,3525.9,1.49015698]
[1718354835214,4.087703,3527.0,3526.0,3.13844514]
[1718354835419,4.087703,3527.0,3526.2,2.3915]
[1718354835607,4.087703,3527.0,3526.3,0.05670652]
[1718354835799,4.087703,3527.0,3526.4,0.55866517]
[1718354835979,4.087703,3527.0,3526.5,0.05670485]
[1718354836982,4.087703,3527.0,3526.7,4.0102]
[1718354837211,4.087703,3527.0,3526.9,1.705]
[1718354837418,4.087703,3527.0,3526.9,3.13844514]
[1718354837935,4.087703,3527.0,3526.7,2.3052]
[1718354838320,4.087703,3527.0,3525.8,5.4184]
[1718354838512,4.087703,3527.0,3525.9,1.98344514]
[1718354838692,4.087703,3527.0,3526.0,2.3371]
[1718354838888,4.087703,3527.0,3526.2,1.705]
[1718354839223,4.087703,3527.0,3526.3,3.13844514]
[1718354839584,4.087703,3527.0,3526.0,2.3371]
[1718354839900,4.4964733,3527.0,3526.0,3.77054514]
[1718354840106,6.1654733,3527.0,3526.0,3.77054514]
[1718354840786,6.1654733,3527.0,3526.0,2.3371]
[1718354840986,6.1654733,3527.0,3525.8,1.705]
[1718354841187,6.1654733,3527.0,3525.8,3.13844514]
[1718354841489,0.85980733,3526.9,3525.8,3.13844514]
[1718354844526,4.087703,3527.0,3525.8,3.13844514]
[1718354848199,4.087703,3527.0,3525.7,2.3268]
[1718354848200,1.669,3526.8,3525.7,2.3268]
[1718354848508,2.2676,3526.7,3525.5,1.705]
[1718354848709,2.2676,3526.7,3525.6,1.43344514]
[1718354849303,2.2676,3526.7,3525.5,1.705]
[1718354849499,2.2676,3526.7,3525.5,3.13844514]
[1718354849748,1.669,3526.4,3525.2,1.705]
[1718354850035,2.6543,3526.3,3525.2,1.705]
[1718354851702,2.6543,3526.3,3524.9,1.705]
[1718354851905,2.6543,3526.3,3524.9,3.13844514]
[1718354852829,2.4456,3525.9,3524.8,2.4859]
[1718354853058,0.41146,3525.8,3524.6,1.705]
[1718354853218,0.41146,3525.8,3524.7,1.43344514]
[1718354853544,2.493,3525.5,3524.5,7.44]
[1718354853752,3.92644514,3525.5,3524.1,7.44]
[1718354853906,1.669,3524.8,3524.1,7.44]
[1718354854100,1.8359,3524.8,3524.1,7.44]
[1718354854305,1.669,3524.8,3524.1,7.44]
[1718354854551,5.26495451,3525.1,3524.2,0.05674699]
[1718354854718,3.0,3525.1,3524.1,7.44]
[1718354855752,1.669,3524.8,3524.1,7.44]
[1718354857241,1.669,3524.8,3524.2,0.05674675]
[1718354857404,3.0,3525.1,3524.3,0.74967468]
[1718354857602,3.0,3525.2,3524.4,0.05674039]
[1718354858016,2.493,3525.3,3524.4,0.05674039]
[1718354859427,2.493,3525.3,3524.3,0.74967468]
[1718354859632,1.669,3525.0,3524.1,7.44]
[1718354860192,3.0,3525.2,3524.2,0.05674367]
[1718354860344,4.669,3525.2,3524.2,0.05674367]
[1718354860728,4.669,3525.2,3524.1,8.184]
[1718354862966,4.669,3525.2,3524.2,0.05674641]
[1718354864678,4.669,3525.2,3524.1,0.744]
[1718354868366,5.3852,3525.2,3524.1,0.744]
[1718354870055,5.3852,3525.2,3524.1,3.2137]
[1718354878577,5.8758553,3525.2,3524.1,3.2137]
[1718354878779,5.3852,3525.2,3524.1,3.2137]
[1718354879084,5.8758553,3525.2,3524.1,3.2137]